fUST/lending_fUST_20250603
["ID","MTS","AMOUNT","RATE_DAILY","PERIOD"]
[363847737,1748898638347,-440.0,0.00016975,2]
[363847738,1748898638357,-440.0,0.00016975,2]
[363847739,1748898638367,-440.0,0.00016975,2]
[363847740,1748898638377,-1388.18,0.00016975,2]
[363847741,1748898638386,-440.0,0.00016975,2]
[363847742,1748898638396,-587.08,0.00016975,2]
[363847743,1748898638408,-347.4615521,0.00016975,2]
[363847744,1748898638417,-440.0,0.00016975,2]
[363847745,1748898638427,-440.0,0.00016976,2]
[363847746,1748898638438,-440.0,0.00016976,2]
[363847747,1748898638448,-440.0,0.00016976,2]
[363847748,1748898638458,-440.0,0.00016976,2]
[363847749,1748898638468,-440.0,0.00016976,2]
[363847750,1748898638479,-440.0,0.00016976,2]
[363847751,1748898638488,-440.0,0.00016976,2]
[363847752,1748898638498,-538.35614709,0.00016976,2]
[363847753,1748898638507,-440.0,0.00016976,2]
[363847754,1748898638517,-440.0,0.00016976,2]
[363847755,1748898638526,-440.0,0.00016976,2]
[363847756,1748898638538,-440.0,0.00016976,2]
[363847757,1748898638548,-420.0,0.00016976,2]
[363847758,1748898638558,-464.5987658,0.00016976,2]
[363847759,1748898638567,-440.0,0.00016976,2]
[363847760,1748898638578,-440.0,0.00016976,2]
[363847761,1748898638588,-224.04083357,0.00016976,2]
[363847762,1748898638602,-412.14914117,0.00016976,2]
[363847763,1748898638612,-440.0,0.00016976,2]
[363847764,1748898638622,-440.0,0.00016976,2]
[363847765,1748898638631,-440.0,0.00016976,2]
[363847766,1748898638641,-440.0,0.00016976,2]
[363847767,1748898638650,-460.0,0.00016976,2]
[363847768,1748898638660,-440.0,0.00016976,2]
[363847769,1748898638672,-440.0,0.00016976,2]
[363847770,1748898638681,-440.0,0.00016976,2]
[363847771,1748898638691,-440.0,0.00016976,2]
[363847772,1748898638701,-480.0,0.00016976,2]
[363847773,1748898638710,-440.0,0.00016976,2]
[363847774,1748898638720,-440.0,0.00016976,2]
[363847775,1748898638730,-440.0,0.00016976,2]
[363847776,1748898638740,-440.0,0.00016976,2]
[363847777,1748898638750,-440.0,0.00016976,2]
[363847778,1748898638761,-440.0,0.00016976,2]
[363847779,1748898638771,-440.0,0.00016976,2]
[363847780,1748898638781,-440.0,0.00016976,2]
[363847781,1748898638791,-440.0,0.00016976,2]
[363847782,1748898638800,-440.0,0.00016976,2]
[363847783,1748898638810,-432.35406267,0.00016976,2]
[363847784,1748898638819,-440.0,0.00016976,2]
[363847785,1748898638829,-304.82957489,0.00016976,2]
[363847786,1748898638839,-300.0,0.00016976,2]
[363847787,1748898638849,-440.0,0.00016976,2]
[363847788,1748898638859,-440.0,0.00016976,2]
[363847789,1748898638868,-440.0,0.00016976,2]
[363847790,1748898638878,-500.0,0.00016976,2]
[363847791,1748898638887,-440.0,0.00016976,2]
[363847792,1748898638897,-326.09857775,0.00016976,2]
[363847793,1748898638907,-390.0,0.00016977,2]
[363847794,1748898638916,-440.0,0.00016977,2]
[363847795,1748898638926,-440.0,0.00016977,2]
[363847796,1748898638936,-420.0,0.00016977,2]
[363847797,1748898638946,-440.0,0.00016977,2]
[363847798,1748898638955,-160.013418,0.00016978,2]
[363847799,1748898638965,-160.013418,0.00016978,2]
[363847800,1748898638975,-630.0,0.0001698,2]
[363847801,1748898638985,-630.0,0.00017007,2]
[363847802,1748898638995,-630.0,0.00017035,2]
[363847803,1748898639005,-630.0,0.00017062,2]
[363847804,1748898639014,-630.0,0.0001709,2]
[363847805,1748898639023,-630.0,0.00017117,2]
[363847806,1748898639033,-630.0,0.00017144,2]
[363847807,1748898639042,-630.0,0.00017172,2]
[363847808,1748898639053,-500.0,0.00017186,2]
[363847809,1748898639063,-500.0,0.00017197,2]
[363847810,1748898639072,-630.0,0.00017199,2]
[363847811,1748898639082,-711.87223557,0.000172,2]
[363847812,1748898639092,-711.87223538,0.000172,2]
[363847813,1748898639102,-630.0,0.00017227,2]
[363847814,1748898639112,-440.0,0.00017247,2]
[363847815,1748898639122,-440.0,0.00017247,2]
[363847816,1748898639132,-1252.42,0.00017247,2]
[363847817,1748898639141,-440.0,0.00017247,2]
[363847818,1748898639152,-440.0,0.00017247,2]
[363847819,1748898639162,-188.25653715,0.00017248,2]
[363847820,1748898639172,-440.0,0.00017248,2]
[363847821,1748898639182,-440.0,0.00017248,2]
[363847822,1748898639192,-430.0,0.00017248,2]
[363847823,1748898639201,-440.0,0.00017248,2]
[363847824,1748898639211,-440.0,0.00017248,2]
[363847825,1748898639221,-440.0,0.00017248,2]
[363847826,1748898639231,-410.0,0.00017248,2]
[363847827,1748898639240,-410.0,0.00017248,2]
[363847828,1748898639250,-440.0,0.00017248,2]
[363847829,1748898639260,-410.0,0.00017248,2]
[363847830,1748898639270,-500.0,0.00017248,2]
[363847831,1748898639279,-500.0,0.00017248,2]
[363847832,1748898639289,-440.0,0.00017248,2]
[363847833,1748898639299,-440.0,0.00017248,2]
[363847834,1748898639310,-440.0,0.00017248,2]
[363847835,1748898639319,-440.0,0.00017248,2]
[363847836,1748898639329,-440.0,0.00017248,2]
[363847837,1748898639339,-456.02,0.00017248,2]
[363847838,1748898639348,-410.0,0.00017248,2]
[363847839,1748898639358,-440.0,0.00017248,2]
[363847840,1748898639367,-440.0,0.00017248,2]
[363847841,1748898639377,-440.0,0.00017248,2]
[363847842,1748898639387,-260.99538037,0.00017248,2]
[363847843,1748898639396,-440.0,0.00017248,2]
[363847844,1748898639405,-1041.47,0.00017248,2]
[363847845,1748898639415,-410.0,0.00017248,2]
[363847846,1748898639424,-440.0,0.00017248,2]
[363847847,1748898639434,-1168.92,0.00017248,2]
[363847848,1748898639443,-440.0,0.00017248,2]
[363847849,1748898639453,-440.0,0.00017248,2]
[363847850,1748898639462,-440.0,0.00017248,2]
[363847851,1748898639472,-440.0,0.00017248,2]
[363847852,1748898639482,-440.0,0.00017248,2]
[363847853,1748898639492,-410.0,0.00017248,2]
[363847854,1748898639501,-550.0,0.00017248,2]
[363847855,1748898639511,-440.0,0.00017248,2]
[363847856,1748898639520,-440.0,0.00017248,2]
[363847857,1748898639530,-440.0,0.00017248,2]
[363847858,1748898639541,-440.0,0.00017248,2]
[363847859,1748898639550,-410.0,0.00017248,2]
[363847860,1748898639560,-410.0,0.00017248,2]
[363847861,1748898639571,-440.0,0.00017248,2]
[363847862,1748898639581,-1243.84,0.00017248,2]
[363847863,1748898639591,-440.0,0.00017248,2]
[363847864,1748898639603,-440.0,0.00017248,2]
[363847865,1748898639613,-440.0,0.00017248,2]
[363847866,1748898639622,-487.35543612,0.00017248,2]
[363847867,1748898639631,-410.0,0.00017248,2]
[363847868,1748898639642,-2429.72,0.00017248,2]
[363847869,1748898639652,-534.55347429,0.00017248,2]
[363847870,1748898639663,-440.0,0.00017248,2]
[363847871,1748898639673,-440.0,0.00017248,2]
[363847872,1748898639683,-440.0,0.00017248,2]
[363847873,1748898639692,-410.0,0.00017248,2]
[363847874,1748898639702,-2446.38,0.00017248,2]
[363847875,1748898639711,-440.0,0.00017248,2]
[363847876,1748898639721,-2932.61,0.00017248,2]
[363847877,1748898639730,-410.0,0.00017248,2]
[363847878,1748898639740,-410.0,0.00017248,2]
[363847879,1748898639749,-410.0,0.00017248,2]
[363847880,1748898639762,-410.0,0.00017248,2]
[363847881,1748898639772,-410.0,0.00017248,2]
[363847882,1748898639783,-440.0,0.00017248,2]
[363847883,1748898639793,-759.05,0.00017248,2]
[363847884,1748898639803,-440.0,0.00017248,2]
[363847885,1748898639812,-410.0,0.00017248,2]
[363847886,1748898639822,-410.0,0.00017248,2]
[363847887,1748898639831,-2075.53,0.00017248,2]
[363847888,1748898639842,-440.0,0.00017248,2]
[363847889,1748898639857,-440.0,0.00017248,2]
[363847890,1748898639866,-440.0,0.00017248,2]
[363847891,1748898639876,-410.0,0.00017248,2]
[363847892,1748898639886,-440.0,0.00017248,2]
[363847893,1748898639896,-440.0,0.00017248,2]
[363847894,1748898639906,-440.0,0.00017248,2]
[363847895,1748898639917,-440.0,0.00017248,2]
[363847896,1748898639927,-440.0,0.00017248,2]
[363847897,1748898639937,-440.0,0.00017248,2]
[363847898,1748898639947,-440.0,0.00017248,2]
[363847899,1748898639959,-440.0,0.00017248,2]
[363847900,1748898639969,-1209.51,0.00017248,2]
[363847902,1748898639981,-440.0,0.00017248,2]
[363847904,1748898639991,-163.92597905,0.00017248,2]
[363847905,1748898640000,-470.0,0.00017248,2]
[363847906,1748898640010,-440.0,0.00017248,2]
[363847907,1748898640020,-440.0,0.00017248,2]
[363847908,1748898640030,-490.0,0.00017248,2]
[363847909,1748898640041,-440.0,0.00017248,2]
[363847910,1748898640051,-410.0,0.00017249,2]
[363847911,1748898640060,-440.0,0.00017249,2]
[363847912,1748898640070,-440.0,0.00017249,2]
[363847913,1748898640079,-410.0,0.00017249,2]
[363847914,1748898640089,-822.63,0.00017249,2]
[363847915,1748898640099,-440.0,0.00017249,2]
[363847916,1748898640108,-440.0,0.00017249,2]
[363847917,1748898640118,-440.0,0.00017249,2]
[363847918,1748898640128,-440.0,0.00017249,2]
[363847919,1748898640138,-440.0,0.00017249,2]
[363847920,1748898640149,-440.0,0.00017249,2]
[363847921,1748898640158,-440.0,0.00017249,2]
[363847922,1748898640168,-440.0,0.00017249,2]
[363847923,1748898640178,-440.0,0.00017249,2]
[363847924,1748898640188,-440.0,0.00017249,2]
[363847925,1748898640198,-500.0,0.00017249,2]
[363847926,1748898640208,-470.0,0.00017249,2]
[363847927,1748898640218,-440.0,0.00017249,2]
[363847928,1748898640230,-440.0,0.00017249,2]
[363847929,1748898640239,-440.0,0.00017249,2]
[363847930,1748898640249,-175.9,0.00017249,2]
[363847931,1748898640259,-440.0,0.00017249,2]
[363847932,1748898640269,-440.0,0.00017249,2]
[363847933,1748898640279,-1447.71,0.00017249,2]
[363847934,1748898640289,-3248.01,0.00017249,2]
[363847935,1748898640300,-769.84,0.00017249,2]
[363847937,1748898640310,-410.0,0.00017249,2]
[363847938,1748898640319,-410.0,0.00017249,2]
[363847939,1748898640329,-440.0,0.00017249,2]
[363847940,1748898640340,-709.82,0.00017249,2]
[363847941,1748898640350,-571.83,0.00017249,2]
[363847943,1748898640360,-3691.36,0.00017249,2]
[363847944,1748898640370,-616.2,0.00017249,2]
[363847946,1748898640380,-440.0,0.00017249,2]
[363847948,1748898640390,-440.0,0.00017249,2]
[363847949,1748898640400,-1320.38,0.00017249,2]
[363847950,1748898640410,-440.0,0.00017249,2]
[363847956,1748898640559,-1361.05,0.00017249,2]
[363847957,1748898640570,-440.0,0.00017249,2]
[363847958,1748898640580,-440.0,0.00017249,2]
[363847959,1748898640591,-440.0,0.00017249,2]
[363847960,1748898640609,-1388.18,0.00017249,2]
[363847961,1748898640619,-440.0,0.00017249,2]
[363847962,1748898640629,-587.08,0.00017249,2]
[363847963,1748898640639,-410.0,0.00017249,2]
[363847964,1748898640650,-410.0,0.0001725,2]
[363847965,1748898640659,-410.0,0.0001725,2]
[363847966,1748898640671,-440.0,0.0001725,2]
[363847967,1748898640681,-440.0,0.0001725,2]
[363847968,1748898640690,-440.0,0.0001725,2]
[363847969,1748898640700,-440.0,0.0001725,2]
[363847970,1748898640710,-440.0,0.0001725,2]
[363847971,1748898640719,-440.0,0.0001725,2]
[363847972,1748898640733,-420.0,0.0001725,2]
[363847973,1748898640742,-440.0,0.0001725,2]
[363847974,1748898640752,-440.0,0.0001725,2]
[363847975,1748898640762,-440.0,0.0001725,2]
[363847976,1748898640772,-495.59603663,0.0001725,2]
[363847977,1748898640781,-440.0,0.0001725,2]
[363847978,1748898640791,-561.72815157,0.0001725,2]
[363847979,1748898640800,-440.0,0.0001725,2]
[363847980,1748898640810,-440.0,0.0001725,2]
[363847981,1748898640819,-440.0,0.0001725,2]
[363847982,1748898640829,-281.98,0.0001725,2]
[363847983,1748898640839,-440.0,0.0001725,2]
[363847984,1748898640848,-450.0,0.0001725,2]
[363847985,1748898640858,-440.0,0.0001725,2]
[363847986,1748898640868,-440.0,0.0001725,2]
[363847987,1748898640877,-440.0,0.0001725,2]
[363847988,1748898640887,-450.0,0.0001725,2]
[363847989,1748898640896,-440.0,0.0001725,2]
[363847990,1748898640906,-510.0,0.0001725,2]
[363847991,1748898640915,-440.0,0.0001725,2]
[363847992,1748898640925,-440.0,0.0001725,2]
[363847993,1748898640935,-163.57840911,0.0001725,2]
[363847994,1748898640944,-440.0,0.0001725,2]
[363847995,1748898640954,-440.0,0.0001725,2]
[363847996,1748898640964,-440.0,0.0001725,2]
[363847997,1748898640975,-440.0,0.0001725,2]
[363847998,1748898640984,-500.0,0.0001725,2]
[363847999,1748898640994,-440.0,0.0001725,2]
[363848000,1748898641004,-151.0,0.00017251,2]
[363848001,1748898641013,-410.0,0.00017251,2]
[363848002,1748898641023,-410.0,0.00017251,2]
[363848003,1748898641033,-495.28004367,0.00017251,2]
[363848004,1748898641042,-630.0,0.00017254,2]
[363848005,1748898641052,-630.0,0.00017281,2]
[363848006,1748898641061,-500.0,0.00017284,2]
[363848007,1748898641071,-630.0,0.00017309,2]
[363848008,1748898641082,-1000.0,0.00017321,2]
[363848009,1748898641091,-447.3515898,0.00017321,2]
[363848010,1748898641101,-630.0,0.00017336,2]
[363848011,1748898641111,-711.87223538,0.00017383,2]
[363848012,1748898641121,-500.0,0.00017411,2]
[363848013,1748898641131,-500.0,0.00017411,2]
[363848014,1748898641140,-440.0,0.00017521,2]
[363848015,1748898641150,-440.0,0.00017521,2]
[363848016,1748898641159,-1252.42,0.00017521,2]
[363848017,1748898641168,-440.0,0.00017521,2]
[363848018,1748898641178,-440.0,0.00017521,2]
[363848019,1748898641187,-440.0,0.00017522,2]
[363848020,1748898641197,-440.0,0.00017522,2]
[363848021,1748898641207,-440.0,0.00017522,2]
[363848022,1748898641216,-400.0,0.00017522,2]
[363848023,1748898641227,-440.0,0.00017522,2]
[363848024,1748898641237,-440.0,0.00017522,2]
[363848025,1748898641249,-500.0,0.00017522,2]
[363848026,1748898641259,-400.0,0.00017522,2]
[363848027,1748898641269,-400.0,0.00017522,2]
[363848028,1748898641278,-400.0,0.00017522,2]
[363848029,1748898641288,-400.0,0.00017522,2]
[363848030,1748898641298,-420.0,0.00017522,2]
[363848031,1748898641308,-440.0,0.00017522,2]
[363848033,1748898641317,-440.0,0.00017522,2]
[363848035,1748898641327,-440.0,0.00017522,2]
[363848037,1748898641336,-440.0,0.00017522,2]
[363848039,1748898641346,-1041.47,0.00017522,2]
[363848041,1748898641356,-440.0,0.00017522,2]
[363848042,1748898641365,-1168.92,0.00017522,2]
[363848044,1748898641375,-440.0,0.00017522,2]
[363848046,1748898641384,-440.0,0.00017522,2]
[363848048,1748898641394,-440.0,0.00017522,2]
[363848050,1748898641404,-440.0,0.00017522,2]
[363848052,1748898641414,-400.0,0.00017522,2]
[363848053,1748898641424,-440.0,0.00017522,2]
[363848054,1748898641434,-400.0,0.00017522,2]
[363848055,1748898641444,-440.0,0.00017522,2]
[363848057,1748898641454,-440.0,0.00017522,2]
[363848060,1748898641465,-400.0,0.00017522,2]
[363848062,1748898641475,-1243.84,0.00017522,2]
[363848064,1748898641486,-440.0,0.00017522,2]
[363848066,1748898641496,-440.0,0.00017522,2]
[363848068,1748898641506,-440.0,0.00017522,2]
[363848070,1748898641516,-2429.72,0.00017522,2]
[363848072,1748898641526,-440.0,0.00017522,2]
[363848074,1748898641536,-440.0,0.00017522,2]
[363848076,1748898641545,-440.0,0.00017522,2]
[363848078,1748898641555,-2446.38,0.00017522,2]
[363848080,1748898641564,-440.0,0.00017522,2]
[363848082,1748898641575,-2932.61,0.00017522,2]
[363848084,1748898641584,-440.0,0.00017522,2]
[363848086,1748898641594,-759.05,0.00017522,2]
[363848088,1748898641607,-440.0,0.00017522,2]
[363848090,1748898641616,-2075.53,0.00017522,2]
[363848091,1748898641626,-238.86824835,0.00017522,2]
[363848094,1748898641636,-400.0,0.00017522,2]
[363848096,1748898641646,-440.0,0.00017522,2]
[363848098,1748898641656,-440.0,0.00017522,2]
[363848100,1748898641666,-440.0,0.00017522,2]
[363848102,1748898641678,-440.0,0.00017522,2]
[363848104,1748898641688,-440.0,0.00017522,2]
[363848106,1748898641697,-440.0,0.00017522,2]
[363848108,1748898641707,-400.0,0.00017522,2]
[363848110,1748898641717,-440.0,0.00017522,2]
[363848112,1748898641726,-440.0,0.00017522,2]
[363848114,1748898641736,-1209.51,0.00017522,2]
[363848116,1748898641746,-440.0,0.00017522,2]
[363848118,1748898641755,-440.0,0.00017522,2]
[363848119,1748898641764,-161.65,0.00017522,2]
[363848122,1748898641774,-440.0,0.00017523,2]
[363848123,1748898641784,-460.0,0.00017523,2]
[363848125,1748898641794,-822.63,0.00017523,2]
[363848128,1748898641804,-440.0,0.00017523,2]
[363848130,1748898641814,-440.0,0.00017523,2]
[363848131,1748898641823,-440.0,0.00017523,2]
[363848133,1748898641833,-440.0,0.00017523,2]
[363848135,1748898641843,-400.0,0.00017523,2]
[363848137,1748898641852,-440.0,0.00017523,2]
[363848139,1748898641862,-440.0,0.00017523,2]
[363848142,1748898641871,-440.0,0.00017523,2]
[363848144,1748898641880,-400.0,0.00017523,2]
[363848145,1748898641890,-440.0,0.00017523,2]
[363848147,1748898641899,-500.0,0.00017523,2]
[363848149,1748898641909,-440.0,0.00017523,2]
[363848151,1748898641918,-440.0,0.00017523,2]
[363848153,1748898641929,-440.0,0.00017523,2]
[363848155,1748898641939,-440.0,0.00017523,2]
[363848157,1748898641948,-440.0,0.00017523,2]
[363848159,1748898641958,-1447.71,0.00017523,2]
[363848161,1748898641968,-3248.01,0.00017523,2]
[363848163,1748898641978,-769.84,0.00017523,2]
[363848166,1748898641989,-440.0,0.00017523,2]
[363848168,1748898642001,-709.82,0.00017523,2]
[363848170,1748898642011,-571.83,0.00017523,2]
[363848172,1748898642021,-3691.36,0.00017523,2]
[363848174,1748898642031,-616.2,0.00017523,2]
[363848176,1748898642041,-510.0,0.00017523,2]
[363848178,1748898642050,-440.0,0.00017523,2]
[363848180,1748898642060,-1320.38,0.00017523,2]
[363848182,1748898642069,-400.0,0.00017523,2]
[363848184,1748898642079,-1361.05,0.00017523,2]
[363848186,1748898642094,-440.0,0.00017523,2]
[363848188,1748898642104,-440.0,0.00017523,2]
[363848190,1748898642115,-440.0,0.00017523,2]
[363848192,1748898642125,-1388.18,0.00017523,2]
[363848195,1748898642136,-440.0,0.00017523,2]
[363848197,1748898642146,-587.08,0.00017523,2]
[363848199,1748898642156,-440.0,0.00017524,2]
[363848201,1748898642166,-440.0,0.00017524,2]
[363848203,1748898642176,-440.0,0.00017524,2]
[363848205,1748898642185,-440.0,0.00017524,2]
[363848207,1748898642195,-440.0,0.00017524,2]
[363848209,1748898642206,-440.0,0.00017524,2]
[363848211,1748898642216,-440.0,0.00017524,2]
[363848213,1748898642229,-324.57872674,0.00017524,2]
[363848215,1748898642239,-317.71046366,0.00017524,2]
[363848217,1748898642248,-392.10572513,0.00017524,2]
[363848219,1748898642258,-440.0,0.00017524,2]
[363848221,1748898642268,-440.0,0.00017524,2]
[363848223,1748898642278,-440.0,0.00017524,2]
[363848225,1748898642288,-440.0,0.00017524,2]
[363848227,1748898642298,-430.0,0.00017524,2]
[363848229,1748898642308,-440.0,0.00017524,2]
[363848231,1748898642318,-440.0,0.00017524,2]
[363848233,1748898642328,-440.0,0.00017524,2]
[363848235,1748898642338,-440.0,0.00017524,2]
[363848237,1748898642347,-440.0,0.00017524,2]
[363848239,1748898642357,-329.50595859,0.00017524,2]
[363848241,1748898642368,-540.0,0.00017524,2]
[363848243,1748898642378,-440.0,0.00017524,2]
[363848245,1748898642388,-440.0,0.00017524,2]
[363848247,1748898642398,-440.0,0.00017524,2]
[363848249,1748898642407,-160.013418,0.00017525,2]
[363848251,1748898642418,-160.013418,0.00017525,2]
[363848253,1748898642429,-2735.43196046,0.00017573,2]
[363848255,1748898642439,-500.0,0.00017582,2]
[363848257,1748898642449,-500.0,0.00017582,2]
[363848259,1748898642459,-711.87223538,0.00017624,2]
[363848261,1748898642468,-500.0,0.00017744,2]
[363848263,1748898642479,-440.0,0.00017795,2]
[363848265,1748898642488,-440.0,0.00017795,2]
[363848267,1748898642499,-1252.42,0.00017795,2]
[363848269,1748898642509,-440.0,0.00017795,2]
[363848271,1748898642519,-440.0,0.00017795,2]
[363848273,1748898642528,-450.0,0.00017796,2]
[363848275,1748898642538,-450.0,0.00017796,2]
[363848277,1748898642548,-440.0,0.00017796,2]
[363848279,1748898642558,-440.0,0.00017796,2]
[363848281,1748898642568,-440.0,0.00017796,2]
[363848283,1748898642577,-500.0,0.00017796,2]
[363848285,1748898642587,-440.0,0.00017796,2]
[363848287,1748898642601,-249.36967264,0.00017796,2]
[363848289,1748898642611,-339.15,0.00017796,2]
[363848291,1748898642620,-390.0,0.00017796,2]
[363848293,1748898642630,-1041.47,0.00017796,2]
[363848295,1748898642642,-440.0,0.00017796,2]
[363848297,1748898642651,-1168.92,0.00017796,2]
[363848299,1748898642661,-390.0,0.00017796,2]
[363848301,1748898642671,-440.0,0.00017796,2]
[363848303,1748898642682,-390.0,0.00017796,2]
[363848305,1748898642692,-440.0,0.00017796,2]
[363848307,1748898642702,-390.0,0.00017796,2]
[363848310,1748898642711,-380.0,0.00017796,2]
[363848312,1748898642720,-440.0,0.00017796,2]
[363848314,1748898642731,-1243.84,0.00017796,2]
[363848316,1748898642740,-440.0,0.00017796,2]
[363848318,1748898642749,-390.0,0.00017796,2]
[363848320,1748898642759,-440.0,0.00017796,2]
[363848322,1748898642769,-2429.72,0.00017796,2]
[363848324,1748898642779,-440.0,0.00017796,2]
[363848326,1748898642789,-440.0,0.00017796,2]
[363848328,1748898642798,-390.0,0.00017796,2]
[363848330,1748898642807,-2446.38,0.00017796,2]
[363848332,1748898642816,-390.0,0.00017796,2]
[363848334,1748898642825,-2932.61,0.00017796,2]
[363848335,1748898642835,-440.0,0.00017796,2]
[363848337,1748898642844,-759.05,0.00017796,2]
[363848340,1748898642854,-390.0,0.00017796,2]
[363848342,1748898642863,-2075.53,0.00017796,2]
[363848344,1748898642872,-440.0,0.00017796,2]
[363848346,1748898642882,-390.0,0.00017796,2]
[363848348,1748898642891,-440.0,0.00017796,2]
[363848350,1748898642901,-440.0,0.00017796,2]
[363848352,1748898642910,-440.0,0.00017796,2]
[363848354,1748898642920,-440.0,0.00017796,2]
[363848356,1748898642930,-440.0,0.00017796,2]
[363848358,1748898642939,-440.0,0.00017796,2]
[363848360,1748898642949,-1209.51,0.00017796,2]
[363848362,1748898642958,-440.0,0.00017796,2]
[363848364,1748898642968,-440.0,0.00017796,2]
[363848366,1748898642978,-440.0,0.00017797,2]
[363848370,1748898643029,-822.63,0.00017797,2]
[363848371,1748898643040,-440.0,0.00017797,2]
[363848372,1748898643049,-440.0,0.00017797,2]
[363848373,1748898643059,-440.0,0.00017797,2]
[363848374,1748898643068,-440.0,0.00017797,2]
[363848375,1748898643078,-440.0,0.00017797,2]
[363848377,1748898643087,-440.0,0.00017797,2]
[363848379,1748898643098,-440.0,0.00017797,2]
[363848382,1748898643107,-440.0,0.00017797,2]
[363848385,1748898643117,-500.0,0.00017797,2]
[363848388,1748898643127,-440.0,0.00017797,2]
[363848390,1748898643136,-216.94,0.00017797,2]
[363848393,1748898643145,-440.0,0.00017797,2]
[363848397,1748898643155,-440.0,0.00017797,2]
[363848400,1748898643164,-440.0,0.00017797,2]
[363848403,1748898643174,-1447.71,0.00017797,2]
[363848406,1748898643184,-3248.01,0.00017797,2]
[363848409,1748898643193,-769.84,0.00017797,2]
[363848412,1748898643203,-380.0,0.00017797,2]
[363848415,1748898643214,-709.82,0.00017797,2]
[363848418,1748898643224,-571.83,0.00017797,2]
[363848421,1748898643235,-3691.36,0.00017797,2]
[363848423,1748898643244,-616.2,0.00017797,2]
[363848425,1748898643254,-440.0,0.00017797,2]
[363848427,1748898643263,-1320.38,0.00017797,2]
[363848429,1748898643273,-1361.05,0.00017797,2]
[363848431,1748898643283,-440.0,0.00017797,2]
[363848433,1748898643293,-440.0,0.00017797,2]
[363848435,1748898643303,-151.0,0.00017797,2]
[363848437,1748898643312,-440.0,0.00017797,2]
[363848439,1748898643322,-1388.18,0.00017797,2]
[363848441,1748898643331,-440.0,0.00017797,2]
[363848443,1748898643341,-587.08,0.00017797,2]
[363848445,1748898643351,-1054.348671,0.00017797,2]
[363848447,1748898643360,-1054.348671,0.00017797,2]
[363848449,1748898643371,-507.18906685,0.00017798,2]
[363848451,1748898643380,-440.0,0.00017798,2]
[363848453,1748898643391,-440.0,0.00017798,2]
[363848455,1748898643400,-390.0,0.00017798,2]
[363848457,1748898643409,-440.0,0.00017798,2]
[363848459,1748898643418,-440.0,0.00017798,2]
[363848461,1748898643429,-425.65856136,0.00017798,2]
[363848463,1748898643438,-521.60400265,0.00017798,2]
[363848465,1748898643448,-390.0,0.00017798,2]
[363848467,1748898643457,-440.0,0.00017798,2]
[363848469,1748898643466,-298.33931887,0.00017798,2]
[363848471,1748898643476,-390.0,0.00017798,2]
[363848473,1748898643486,-375.9081,0.00017798,2]